bitfinex-derivatives/quotes_ETHF0:USTF0_20250923
["timestamp","ask_amount","ask_price","bid_price","bid_amount"]
[1758633775797,4.39098,4194.9,4194.8,0.42879]
[1758633778199,3.9622,4194.9,4194.8,0.42879]
[1758633778399,3.9622,4194.9,4194.8,0.64889]
[1758633778604,3.9622,4194.9,4194.8,0.97129]
[1758633778898,3.9622,4194.9,4194.8,1.18559]
[1758633779893,3.9622,4194.9,4194.8,0.42879]
[1758633781704,3.9622,4194.9,4194.8,1.18559]
[1758633783902,0.7544,4194.9,4194.8,1.18559]
[1758633784490,3.24929637,4195.4,4195.1,0.42876]
[1758633784692,3.2078,4195.4,4195.3,0.42874]
[1758633784896,3.4123,4195.4,4195.3,1.18554]
[1758633785198,3.7196,4195.4,4195.3,1.18554]
[1758633785805,3.9282,4195.4,4195.3,1.18554]
[1758633787096,3.9282,4195.4,4195.2,0.42875]
[1758633787097,0.63324,4195.3,4195.2,0.42875]
[1758633787298,1.14914,4195.3,4195.2,0.42875]
[1758633787499,0.7204,4195.3,4195.2,0.64885]
[1758633788911,0.7204,4195.3,4195.2,1.18555]
[1758633791912,0.5118,4195.3,4195.2,1.18555]
[1758633792210,0.6619,4195.8,4195.7,0.6505]
[1758633792511,1.09059,4195.8,4195.7,0.9689]
[1758633792809,1.39659,4195.8,4195.7,0.6505]
[1758633793408,0.42872,4195.5,4195.4,0.3184]
[1758633793603,0.8514,4195.5,4195.4,1.17703]
[1758633794916,1.28012,4195.5,4195.4,1.17703]
[1758633795604,0.8514,4195.5,4195.4,1.17703]
[1758633796910,1.28012,4195.5,4195.4,1.17703]
[1758633799216,0.8514,4195.5,4195.4,1.17703]
[1758633800217,0.7269,4195.5,4195.4,1.17703]
[1758633800418,0.241,4195.8,4195.7,0.4287]
[1758633800608,0.6619,4195.8,4195.7,1.177]
[1758633801014,0.9679,4195.8,4195.7,1.177]
[1758633801410,0.7269,4195.8,4195.7,1.177]
[1758633801612,3.2078,4195.9,4195.8,0.42869]
[1758633801816,3.5138,4195.9,4195.8,1.17699]
[1758633802016,3.7267,4195.9,4195.8,1.17699]
[1758633804213,3.9347,4195.9,4195.8,1.17699]
[1758633812018,4.36338,4195.9,4195.8,1.17699]
[1758633816726,4.36338,4195.9,4195.8,0.85859]
[1758633817023,0.4363,4195.7,4195.1,1.07191]
[1758633817219,1.31692,4195.5,4195.4,0.42872]
[1758633817522,0.42873,4195.4,4195.1,0.42875]
[1758633817724,0.1286,4195.0,4194.9,3.63658]
[1758633817916,0.8882,4195.0,4194.9,4.09328]
[1758633818419,0.8882,4195.0,4194.9,4.61758]
[1758633819322,0.6639,4195.5,4195.4,1.16973]
[1758633819523,0.5353,4195.5,4195.4,1.16973]
[1758633819717,0.5353,4195.5,4195.4,1.40973]
[1758633820118,0.8882,4195.5,4195.4,1.40973]
[1758633820620,0.7596,4195.5,4195.4,1.40973]
[1758633822027,0.3233,4195.5,4195.4,1.40973]
[1758633822323,3.6441,4195.9,4195.8,1.16969]
[1758633822827,3.9674,4195.9,4195.8,1.16969]
[1758633825229,3.9674,4195.9,4195.8,0.85079]
[1758633825423,4.39608,4195.9,4195.8,0.85079]
[1758633825932,3.9674,4195.9,4195.8,0.85079]
[1758633826130,3.9674,4195.9,4195.8,1.16969]
[1758633827528,0.3233,4196.3,4196.2,0.4221]
[1758633827732,0.5353,4196.3,4196.2,1.40965]
[1758633830730,0.7596,4196.3,4196.2,1.40965]
[1758633831130,0.42865,4196.2,4196.1,0.42865]
[1758633831333,1.18825,4196.2,4196.1,0.66865]
[1758633831630,1.18825,4196.2,4196.1,0.24]
[1758633832040,0.7596,4196.2,4195.8,0.3189]
[1758633832238,1.18826,4196.1,4196.0,0.42867]
[1758633832833,1.18826,4196.1,4195.8,0.42868]
[1758633833035,0.8917,4196.0,4195.9,0.66868]
[1758633833537,0.8917,4196.0,4195.9,0.87668]
[1758633834437,1.32037,4196.0,4195.9,0.87668]
[1758633835338,0.8917,4196.0,4195.9,0.87668]
[1758633836435,0.8917,4196.0,4195.9,1.39168]
[1758633840546,1.32037,4196.0,4195.9,1.39168]
[1758633841040,0.8917,4196.0,4195.9,1.39168]
[1758633842036,0.3346,4195.9,4195.7,0.42869]
[1758633842243,1.30782,4195.5,4195.4,3.2078]
[1758633842941,1.30782,4195.5,4195.4,0.42873]
[1758633844338,1.30782,4195.5,4195.4,0.63673]
[1758633844544,0.8791,4195.5,4195.4,1.15173]
[1758633844942,0.7493,4195.5,4195.4,1.15173]
[1758633846545,1.30782,4195.5,4195.4,0.208]
[1758633846745,1.30782,4195.5,4195.4,0.63673]
[1758633847655,0.8791,4195.5,4195.4,0.94503]
[1758633848648,1.30782,4195.5,4195.4,0.208]
[1758633848838,0.84343,4195.4,4195.3,0.66874]
[1758633849143,0.7493,4195.4,4195.3,0.87674]
[1758633849343,0.7493,4195.4,4195.3,1.39174]
[1758633849544,0.5388,4195.4,4195.3,1.39174]
[1758633849943,0.5388,4195.6,4195.5,0.84342]
[1758633850143,0.5388,4195.6,4195.5,1.15172]
[1758633850344,0.7493,4195.6,4195.5,1.15172]
[1758633850645,3.2078,4195.9,4195.5,1.15172]
[1758633850646,3.2078,4195.9,4195.8,1.15169]
[1758633850943,3.2078,4195.9,4195.8,1.39169]
[1758633851346,3.7458,4195.9,4195.8,1.39169]
[1758633852244,0.538,4196.2,4196.1,0.86126]
[1758633852445,0.538,4196.2,4196.1,1.18956]
[1758633853947,0.7542,4196.2,4196.1,1.18956]
[1758633860652,0.7542,4196.2,4196.1,0.88986]
[1758633861155,0.7542,4196.2,4196.1,1.21816]
[1758633862151,0.7542,4196.2,4196.1,0.42866]
[1758633862451,0.538,4195.9,4195.8,0.42869]
[1758633862648,0.7542,4195.9,4195.8,0.42869]
[1758633863657,1.18288,4195.9,4195.8,0.42869]
[1758633864851,0.323,4195.8,4195.7,0.4287]
[1758633865067,1.19099,4195.8,4195.7,0.4287]
[1758633867454,0.42873,4195.5,4195.2,3.5193]
[1758633867661,0.7623,4195.3,4195.2,0.42875]
[1758633868156,0.7623,4195.3,4195.2,0.63245]
[1758633868762,1.19104,4195.3,4195.2,0.63245]
[1758633869055,0.7623,4195.3,4195.2,0.63245]
[1758633870464,1.19104,4195.3,4195.2,0.63245]
[1758633872558,1.19104,4195.3,4195.2,0.94395]
[1758633873063,0.7623,4195.1,4195.0,1.18396]
[1758633873760,0.7623,4195.1,4195.0,1.39586]
[1758633873960,1.19106,4195.1,4195.0,0.4437]
[1758633874162,1.19106,4195.1,4194.2,3.2078]
[1758633874163,0.8969,4194.5,4194.4,1.15593]
[1758633874355,1.32572,4194.5,4194.4,0.7271]
[1758633874658,0.7623,4194.3,4194.2,3.723]
[1758633874958,0.7623,4194.3,4194.2,3.9349]
[1758633875158,0.7623,4194.3,4194.2,4.36375]
[1758633875558,1.19114,4194.3,4194.2,4.36375]
[1758633875861,0.7623,4194.3,4194.2,4.36375]
[1758633878659,0.5418,4194.3,4194.2,4.36375]
[1758633878960,0.323,4194.3,4194.2,4.36375]
[1758633879464,0.5418,4194.3,4194.2,4.36375]
[1758633881458,0.7623,4194.3,4194.2,3.84035]
[1758633881961,0.7623,4194.3,4194.2,4.15185]
[1758633882162,0.7623,4194.3,4194.2,4.36375]
[1758633884162,1.19114,4194.3,4194.2,4.05225]
[1758633884466,0.7623,4194.3,4194.2,0.42885]
[1758633884864,0.7623,4194.3,4194.2,0.63255]
[1758633885263,0.7623,4194.3,4194.2,0.94405]
[1758633885466,0.7623,4194.3,4194.2,1.15595]
[1758633888866,0.7623,4194.3,4194.2,0.42885]
[1758633889262,0.7623,4194.3,4194.2,0.63255]
[1758633889463,1.19114,4194.3,4193.7,3.5193]
[1758633889769,0.5418,4193.8,4193.7,4.36381]
[1758633889964,0.5418,4193.8,4193.7,4.60381]
[1758633892366,0.8969,4194.5,4194.4,0.42883]
[1758633892670,1.32572,4194.5,4194.4,0.63253]
[1758633892969,1.56415,4194.5,4194.4,0.63253]
[1758633893272,1.56415,4194.5,4194.4,0.2037]
[1758633893466,1.18754,4194.4,4194.3,0.42884]
[1758633894368,0.64004,4194.3,4194.2,0.2146]
[1758633894573,1.18754,4194.3,4194.2,0.2146]
[1758633894968,0.7587,4194.1,4194.0,0.42886]
[1758633895474,0.7587,4194.1,4194.0,1.18386]
[1758633899774,1.18756,4194.1,4194.0,0.755]
[1758633899969,1.18756,4194.1,4194.0,1.18387]
[1758633900170,0.7587,4194.1,4194.0,1.18387]
[1758633900365,0.1346,4194.5,4194.0,1.31357]
[1758633900569,0.5656,4195.0,4194.9,0.2146]
[1758633900876,0.85977,4195.0,4194.9,1.18378]
[1758633901070,1.18747,4195.0,4194.9,1.18378]
[1758633901273,1.31017,4195.0,4194.9,1.18378]
[1758633901679,1.31017,4195.0,4194.9,0.4217]
[1758633902278,1.31017,4195.0,4194.9,0.85048]
[1758633902481,0.8814,4195.0,4194.9,0.85048]
[1758633902879,1.31017,4195.0,4194.9,0.85048]
[1758633903484,0.8814,4195.0,4194.9,0.85048]
[1758633903675,0.8814,4195.0,4194.9,1.18378]
[1758633903982,0.5389,4195.0,4194.9,1.18378]
[1758633904170,3.2078,4195.1,4195.0,0.755]
[1758633904171,3.4276,4195.1,4195.0,0.755]
[1758633904375,4.06756,4195.1,4195.0,1.18377]
[1758633904871,0.7587,4194.9,4194.8,0.64338]
[1758633905185,0.1227,4194.5,4194.4,0.64343]
[1758633905482,0.24,4194.9,4194.7,0.4288]
[1758633905782,0.96769,4194.8,4194.7,0.6434]
[1758633905984,1.18749,4194.8,4194.7,0.755]
[1758633906182,1.18749,4194.8,4194.7,1.1838]
[1758633906485,0.7587,4194.8,4194.7,1.1838]
[1758633906782,1.18749,4194.8,4194.7,1.1838]
[1758633907783,1.18749,4194.8,4194.7,0.755]
[1758633907980,0.42881,4194.6,4194.5,0.42881]
[1758633908284,1.18751,4194.6,4194.5,0.97671]
[1758633908687,0.7587,4194.6,4194.5,1.18381]
[1758633909387,1.18751,4194.6,4194.5,1.18381]
[1758633910186,0.7587,4194.6,4194.5,1.18381]
[1758633910482,1.18751,4194.6,4194.5,1.18381]
[1758633910686,0.7587,4194.4,4194.3,0.42884]
[1758633911079,0.7587,4194.4,4193.8,0.96529]
[1758633911080,0.7505,4193.9,4193.8,0.96529]
[1758633911280,1.17938,4193.9,4193.8,0.63609]
[1758633911476,0.7505,4193.9,4193.8,0.63609]
[1758633911682,0.7505,4193.9,4193.8,1.18309]
[1758633912389,0.3336,4194.3,4193.9,1.40142]
[1758633912688,0.5468,4194.3,4194.2,0.7542]
[1758633912884,0.3336,4194.3,4194.2,1.18305]
[1758633913089,0.97562,4194.5,4194.4,1.18303]
[1758633913884,0.2132,4194.5,4194.4,1.18303]
[1758633914185,3.2078,4195.1,4195.0,0.85377]
[1758633914382,3.2078,4195.1,4195.0,1.31017]
[1758633914586,3.421,4195.1,4195.0,1.31017]
[1758633914783,3.7546,4195.1,4195.0,1.31017]
[1758633917892,3.7546,4195.1,4195.0,1.18297]
[1758633918389,0.5468,4195.1,4195.0,1.18297]
[1758633918593,1.1251,4195.5,4195.4,1.18293]
[1758633918791,0.7505,4195.5,4195.4,1.18293]
[1758633918991,0.5468,4195.9,4195.8,1.18289]
[1758633919493,0.7505,4195.9,4195.8,1.18289]
[1758633920389,3.2078,4196.1,4196.0,0.88507]
[1758633920693,3.7546,4196.1,4196.0,1.18287]
[1758633921694,3.9583,4196.1,4196.0,0.63587]
[1758633922302,3.9583,4196.1,4196.0,1.18287]
[1758633923006,3.9583,4196.1,4196.0,0.85367]
[1758633923906,3.9583,4196.1,4196.0,1.17447]
[1758633924801,0.3343,4196.3,4196.1,1.07165]
[1758633925001,4.2136,4196.6,4196.5,1.17252]
[1758633926106,4.2136,4196.6,4196.5,0.2073]
[1758633926310,0.5535,4196.1,4196.0,1.17257]
[1758633926602,0.7658,4196.1,4196.0,1.17257]
[1758633929011,0.5535,4196.1,4196.0,1.17257]
[1758633929208,0.5535,4196.1,4196.0,1.30437]
[1758633931013,0.7658,4196.1,4196.0,1.17257]
[1758633931317,1.19446,4196.1,4196.0,0.85177]
[1758633931607,1.19446,4196.1,4196.0,0.63597]
[1758633932310,0.42868,4195.9,4195.7,0.42869]
[1758633932509,0.7658,4195.8,4195.7,0.42869]
[1758633932812,0.7658,4195.8,4195.7,0.63599]
[1758633933312,1.19449,4195.8,4195.7,0.42869]
[1758633933511,0.42871,4195.7,4195.5,0.42871]
[1758633933715,0.7658,4195.2,4195.1,0.7439]
[1758633934010,0.7658,4195.2,4195.1,0.9839]
[1758633934515,0.5535,4195.2,4195.1,1.41266]
[1758633936009,0.5535,4195.2,4195.1,1.17266]
[1758633936213,0.7658,4195.2,4195.1,0.42876]
[1758633936714,0.7658,4195.2,4195.1,0.63606]
[1758633938417,1.19455,4195.2,4195.1,0.63606]
[1758633938620,0.7658,4194.9,4194.8,0.42878]
[1758633939115,0.7658,4194.9,4194.8,0.63608]
[1758633939315,0.7658,4194.9,4194.8,0.95688]
[1758633940016,0.7658,4194.9,4194.8,1.17268]
[1758633940210,4.1058,4195.5,4195.4,0.63603]
[1758633940415,4.1058,4195.5,4195.4,1.17263]
[1758633941215,3.2078,4195.5,4195.4,1.17263]
[1758633941610,3.7613,4195.5,4195.4,1.17263]
[1758633941811,4.1058,4195.5,4195.4,1.17263]
[1758633942316,3.9736,4195.5,4195.4,1.17263]
[1758633944620,4.1058,4195.5,4195.4,0.63603]
[1758633945722,4.1058,4195.5,4195.4,1.17263]
[1758633947310,0.898,4195.5,4195.4,1.17263]
[1758633948920,0.5535,4196.0,4195.9,0.42868]
[1758633949126,0.898,4196.5,4196.4,1.17253]
[1758633949422,0.7658,4196.5,4196.4,1.17253]
[1758633950620,0.898,4196.5,4196.4,1.17253]
[1758633950926,0.898,4196.5,4196.4,0.42863]
[1758633952828,0.7658,4196.3,4196.2,0.42864]
[1758633954024,0.4315,4196.3,4196.0,0.42866]
[1758633954229,3.9868,4196.1,4196.0,0.42866]
[1758633954930,4.41546,4196.1,4196.0,0.42866]
[1758633955932,0.779,4195.6,4195.5,0.89012]
[1758633956228,0.779,4195.6,4195.5,1.41012]
[1758633957928,0.779,4195.6,4195.5,1.17012]
[1758633958131,0.779,4195.6,4195.5,1.41012]
[1758633959629,0.2244,4195.6,4195.5,1.41012]
[1758633959923,0.779,4196.0,4195.9,0.7414]
[1758633960130,1.33777,4196.0,4195.9,0.4301]
[1758633960325,1.33777,4196.0,4195.9,0.2214]
[1758633960527,0.779,4195.6,4195.5,0.66871]
[1758633960731,0.779,4195.6,4195.5,1.41011]
[1758633961729,0.55878,4196.0,4195.9,0.42868]
[1758633962025,1.00588,4196.0,4195.9,0.7414]
[1758633962232,1.00588,4196.0,4195.9,1.17008]
[1758633962427,1.33778,4196.0,4195.9,1.17008]
[1758633963233,1.33778,4196.0,4195.9,0.85878]
[1758633963432,1.33778,4196.0,4195.9,1.17008]
[1758633963733,1.33778,4196.0,4195.9,0.42868]
[1758633963933,0.9091,4196.0,4195.9,1.17008]
[1758633964127,0.779,4196.0,4195.9,1.17008]
[1758633965130,0.779,4196.5,4196.4,1.17003]
[1758633966433,3.2078,4196.6,4196.5,1.29582]
[1758633967033,3.7641,4196.6,4196.5,1.29582]
[1758633967233,3.9868,4196.6,4196.5,1.17002]
[1758633970221,3.7641,4196.6,4196.5,1.17002]
[1758633970425,3.63635,4197.2,4196.8,0.7414]
[1758633970633,3.63635,4197.2,4196.5,0.55442]
[1758633970634,0.5563,4197.1,4197.0,1.16997]
[1758633970932,0.2244,4197.1,4197.0,1.29577]
[1758633971329,0.5563,4197.1,4197.0,1.29577]
[1758633973133,0.7669,4197.1,4197.0,1.16997]
[1758633973523,3.5165,4197.2,4197.1,1.17166]
[1758633973728,3.7292,4197.2,4197.1,1.17166]
[1758633974334,3.7292,4197.2,4197.1,2.05456]
[1758633977334,3.9398,4197.2,4197.1,2.05456]
[1758633977535,4.36835,4197.2,4197.1,2.05456]
[1758633977934,4.36835,4197.2,4197.1,0.8829]
[1758633978136,4.36835,4197.2,4197.1,1.31146]
[1758633979639,4.36835,4197.2,4197.1,1.53016]
[1758633981542,4.36835,4197.2,4197.1,0.8829]
[1758633982436,4.60835,4197.2,4197.1,0.8829]
[1758633985444,8.40982941,4197.2,4197.1,0.8829]
[1758633985642,8.64982941,4197.2,4197.1,0.8829]
[1758633988244,8.40982941,4197.2,4197.1,0.8829]
[1758633988445,8.64982941,4197.2,4197.1,0.8829]
[1758633990245,0.42864,4196.3,4196.2,0.5524]
[1758633990447,1.18654,4196.3,4196.2,0.7604]
[1758633990652,1.18654,4196.3,4196.2,0.4273]
[1758633991347,1.18654,4196.3,4196.2,0.2193]
[1758633991744,1.18656,4196.1,4196.0,3.4271]
[1758633991940,1.18656,4196.1,4196.0,3.2078]
[1758633993448,1.18656,4196.1,4196.0,3.5856]
[1758633994539,1.18656,4196.1,4196.0,4.77467]
[1758633994740,0.97296,4196.1,4196.0,4.90607]
[1758633994951,0.42866,4196.1,4196.0,4.90607]
[1758633995149,0.42866,4196.1,4196.0,1.69827]
[1758633995549,0.97296,4196.1,4196.0,1.69827]
[1758633996853,0.97296,4196.1,4196.0,1.2696]
[1758633997047,1.18656,4196.1,4196.0,1.1382]
[1758633997248,4.39436,4196.1,4196.0,1.1382]
[1758633999349,4.39436,4196.1,4196.0,0.8051]
[1758634000255,4.39436,4196.1,4196.0,0.5971]
[1758634001455,4.39436,4196.1,4196.0,0.3778]
[1758634003155,1.18661,4195.6,4195.5,0.7604]
[1758634003353,1.18665,4195.2,4195.1,0.66876]
[1758634003658,1.18665,4195.2,4195.1,0.88806]
[1758634004057,1.18665,4195.2,4195.1,1.22116]
[1758634004455,0.7579,4195.2,4195.1,1.22116]
[1758634004654,0.7579,4195.2,4195.1,1.42916]
[1758634005453,0.4532,4196.0,4195.9,0.42868]
[1758634005659,0.42867,4196.0,4195.9,1.18908]
[1758634005854,0.64157,4196.0,4195.9,1.18908]
[1758634006055,0.97297,4196.0,4195.9,1.18908]
[1758634006548,0.5443,4196.0,4195.9,1.18908]
[1758634006752,0.2129,4196.0,4195.9,1.18908]
[1758634007152,0.64157,4196.0,4195.9,1.18908]
[1758634007359,0.5443,4196.0,4195.9,1.18908]
[1758634007967,3.2078,4196.1,4196.0,0.89317]
[1758634008264,3.2078,4196.1,4196.0,1.32047]
[1758634008477,3.4207,4196.1,4196.0,1.32047]
[1758634008675,3.7521,4196.1,4196.0,1.32047]
[1758634009180,3.9657,4196.1,4196.0,1.18907]
[1758634009381,4.39436,4196.1,4196.0,1.18907]
[1758634009681,4.39436,4196.1,4196.0,0.85597]
[1758634010078,4.39436,4196.1,4196.0,1.18907]
[1758634010874,3.9657,4196.1,4196.0,1.18907]
[1758634013787,4.39436,4196.1,4196.0,1.18907]
[1758634015775,4.39436,4196.1,4196.0,0.85597]
[1758634016985,4.39436,4196.1,4196.0,0.64797]
[1758634018587,0.4347,4195.8,4195.7,0.6451]
[1758634018775,0.7669,4195.8,4195.7,0.6451]
[1758634019381,0.7669,4195.8,4195.7,1.1745]
[1758634019997,1.19559,4195.8,4195.7,1.1745]
[1758634020288,0.7669,4195.8,4195.7,1.1745]
[1758634021183,1.19559,4195.8,4195.7,0.8541]
[1758634021387,1.19559,4195.8,4195.7,0.4287]
[1758634022188,0.7669,4195.8,4195.7,0.4287]
[1758634022377,0.7669,4195.8,4195.7,0.6451]
[1758634023590,1.19559,4195.8,4195.7,0.4287]
[1758634024087,0.7669,4195.8,4195.7,0.4287]
[1758634024490,0.7669,4195.8,4195.7,1.1745]
[1758634024681,0.5558,4195.8,4195.7,1.1745]
[1758634025185,0.7669,4195.8,4195.7,1.1745]
[1758634025580,1.19559,4195.8,4195.7,1.1745]
[1758634025988,1.19559,4195.8,4195.7,0.8541]
[1758634026288,0.7669,4195.8,4195.7,0.8541]
[1758634026890,1.19559,4195.8,4195.7,0.8541]
[1758634027189,0.7669,4195.8,4195.7,0.8541]
[1758634027386,1.19561,4195.6,4195.5,0.24]
[1758634028290,0.5558,4196.0,4195.9,1.17448]
[1758634028688,0.7669,4196.0,4195.9,0.7458]
[1758634028892,0.7669,4195.8,4195.7,0.8541]
[1758634029086,0.7669,4195.8,4195.7,1.1745]
[1758634029795,0.5558,4195.8,4195.7,1.1745]
[1758634030090,0.42865,4196.2,4196.1,0.42865]
[1758634030285,0.76084,4196.3,4196.2,0.64504]
[1758634030493,1.19554,4196.3,4196.2,0.64504]
[1758634031388,0.7669,4196.3,4196.2,0.64504]
[1758634031594,0.7669,4196.3,4196.2,1.17444]
[1758634031783,3.2078,4196.6,4196.5,0.77642]
[1758634031983,0.1218,4197.5,4197.1,0.42856]
[1758634032191,0.2236,4197.2,4197.1,4.38216]
[1758634032393,0.5558,4197.2,4197.1,4.38216]
[1758634033199,0.2236,4197.2,4197.1,4.38216]
[1758634033487,0.45876467,4197.9,4197.8,0.7541]
[1758634033692,0.69876467,4197.9,4197.8,0.7541]
[1758634033993,1.1634,4197.7,4197.6,0.2215]
[1758634034194,1.1634,4197.7,4197.6,0.7541]
[1758634034494,0.7349,4197.7,4197.6,0.7541]
[1758634037794,0.4665,4197.9,4197.8,0.4435]
[1758634038092,0.7887,4197.9,4197.8,0.7541]
[1758634038394,0.022,4197.9,4197.8,0.7541]
[1758634038691,3.3341,4199.0,4198.5,0.4438]
[1758634038894,0.5267,4198.9,4198.8,1.18248]
[1758634039091,0.3222,4199.5,4199.4,0.42832]
[1758634039294,0.5267,4199.5,4199.4,1.18242]
[1758634039499,0.84098,4199.9,4199.8,0.7541]
[1758634039796,0.84098,4199.9,4199.8,0.4435]
[1758634040297,0.84098,4199.9,4199.5,0.3106]
[1758634040298,0.4283,4199.6,4199.5,0.3106]
[1758634040499,0.841,4199.6,4199.5,0.7541]
[1758634040690,1.1632,4199.6,4199.5,0.7541]
[1758634042496,0.7349,4199.6,4199.5,0.7541]
[1758634042700,10.7349,4200.0,4199.9,1.18237]
[1758634043597,10.862,4200.0,4199.9,0.7541]
[1758634044500,10.862,4200.0,4199.9,0.4435]
[1758634045100,0.41,4199.8,4199.7,0.763]
[1758634045306,0.7343,4199.8,4199.7,0.763]
[1758634045493,0.7343,4199.8,4199.7,0.4479]
[1758634046094,0.7343,4199.8,4199.7,0.9666]
[1758634046494,10.0,4200.0,4199.8,0.74338]
[1758634046698,10.0,4200.0,4199.9,0.4115]
[1758634046898,10.0,4200.0,4199.9,0.7266]
[1758634049505,10.0,4200.0,4199.9,1.15487]
[1758634050107,10.8614,4200.0,4199.9,1.15487]
[1758634050395,0.3243,4199.9,4199.8,3.2078]
[1758634050602,0.7343,4199.9,4199.8,4.08398]
[1758634051103,1.16257,4199.9,4199.8,3.2078]
[1758634051297,0.7343,4199.4,4199.3,4.36273]
[1758634051499,0.7343,4199.4,4199.3,4.60273]
[1758634054604,0.42827,4199.9,4199.8,0.2079]
[1758634054804,0.83827,4199.9,4199.8,0.2079]
[1758634055105,0.83827,4199.9,4199.7,0.3151]
[1758634055106,0.83828,4199.8,4199.7,0.42829]
[1758634055304,1.16258,4199.8,4199.7,0.42829]
[1758634056805,0.7343,4199.8,4199.7,0.42829]
[1758634057119,0.2057,4198.9,4198.8,3.2078]
[1758634057301,0.2057,4198.9,4198.8,3.84408]
[1758634057302,0.7343,4198.9,4198.8,3.84408]
[1758634057504,0.7343,4198.9,4198.8,4.60278]
[1758634058001,1.28971,4199.5,4199.4,0.63622]
[1758634059204,0.8614,4199.5,4199.4,0.63622]
[1758634059404,0.8614,4199.5,4199.4,0.95132]
[1758634059605,0.8614,4199.5,4199.4,0.63622]
[1758634060506,1.28971,4199.5,4199.4,0.83982]
[1758634061101,1.28971,4199.5,4199.4,0.63622]
[1758634063511,0.8614,4199.5,4199.4,0.63622]
[1758634063708,1.28971,4199.5,4199.4,0.95132]
[1758634064208,1.28971,4199.5,4199.4,0.2079]
[1758634064408,1.16263,4199.3,4199.2,0.63624]
[1758634064808,0.7343,4199.3,4199.2,1.15494]
[1758634065513,1.16263,4199.3,4199.2,0.83984]
[1758634065715,0.7343,4199.3,4199.2,0.83984]
[1758634065911,1.16263,4199.3,4199.2,0.63624]
[1758634066210,1.16263,4199.3,4199.2,0.42834]
[1758634067014,0.8614,4199.0,4198.9,0.63626]
[1758634067311,0.8614,4199.0,4198.9,1.39496]
[1758634067701,0.7343,4199.0,4198.9,1.39496]
[1758634070314,11.00681194,4200.0,4199.9,1.15487]
[1758634070610,10.5371,4200.0,4199.9,1.15487]
[1758634070916,10.0,4200.0,4199.9,1.39487]
[1758634071407,10.53,4200.0,4199.9,1.39487]
[1758634071913,10.7343,4200.0,4199.9,1.39487]
[1758634075510,10.0,4200.0,4199.9,1.39487]
[1758634076017,10.7372,4200.0,4199.9,1.39487]
[1758634076412,10.7372,4200.0,4199.9,1.15487]
[1758634076714,10.87,4200.0,4199.9,1.07977]
[1758634077816,10.87,4200.0,4199.9,0.66827]
[1758634078317,10.87,4200.0,4199.9,0.42827]
[1758634078518,11.29826,4200.0,4199.9,0.66827]
[1758634078920,10.87,4200.0,4199.9,0.66827]
[1758634079210,10.87,4200.0,4199.9,0.88037]
[1758634080318,0.5582,4199.5,4199.2,0.24]
[1758634080519,0.4254,4199.3,4199.2,0.66834]
[1758634080722,0.4254,4199.3,4199.2,0.88044]
[1758634080915,0.7372,4199.3,4199.2,1.40174]
[1758634081116,0.7372,4199.3,4199.2,0.66834]
[1758634081317,0.7372,4199.3,4199.2,1.40174]
[1758634082018,0.7372,4199.3,4199.2,1.09514]
[1758634082220,0.7372,4199.3,4199.2,0.88044]
[1758634083525,0.7372,4199.3,4199.2,1.40174]
[1758634083718,0.7372,4199.3,4199.2,0.88044]
[1758634085320,0.87,4199.0,4198.9,3.2078]
[1758634085524,0.87,4199.0,4198.9,3.4488]
[1758634085727,0.87,4199.0,4198.9,3.87717]
[1758634087230,0.87,4199.0,4198.9,4.08927]
[1758634090531,0.87,4199.0,4198.9,0.88147]
[1758634090730,0.87,4199.0,4198.9,0.66937]
[1758634091128,0.87,4199.0,4198.4,3.2078]
[1758634091427,0.87,4198.5,4198.4,0.64052]
[1758634091626,0.87,4198.5,4198.4,0.88152]
[1758634091821,1.29841,4198.5,4198.4,0.88152]
[1758634092033,0.87,4198.5,4198.4,0.88152]
[1758634092231,0.87,4198.5,4198.4,0.66942]
[1758634092537,0.87,4198.5,4198.4,0.87402]
[1758634093933,0.87,4198.5,4198.4,0.63302]
[1758634094239,0.87,4198.5,4198.4,0.87402]
[1758634094636,0.87,4198.5,4198.4,0.63302]
[1758634094842,0.87,4198.5,4198.4,1.40132]
[1758634095336,0.5239,4198.5,4198.4,1.40132]
[1758634095541,0.529,4198.8,4198.7,1.16029]
[1758634095741,0.7353,4198.8,4198.7,1.16029]
[1758634096036,0.7353,4198.8,4198.7,0.42839]
[1758634096338,0.7353,4198.8,4198.7,1.16029]
[1758634096539,0.84693,4199.3,4199.2,0.63294]
[1758634096742,1.08509,4199.3,4199.2,0.63294]
[1758634096935,0.65676,4199.3,4199.2,0.63294]
[1758634097240,1.40179,4199.3,4199.2,0.63294]
[1758634097434,0.7353,4199.3,4199.2,0.63294]
[1758634103143,1.16363,4199.3,4199.2,0.63294]
[1758634103442,1.16363,4199.3,4199.2,0.42834]
[1758634104645,0.7289,4198.7,4198.6,0.538]
[1758634104845,0.7289,4198.7,4198.6,0.7563]
[1758634105444,0.7289,4198.7,4198.6,1.1847]
[1758634107243,0.7289,4198.7,4198.6,1.4257]
[1758634107444,0.5186,4198.7,4198.6,1.4257]
[1758634110145,0.7289,4198.7,4198.6,1.4257]
[1758634110547,0.5186,4199.0,4198.9,1.18467]
[1758634111346,0.7289,4199.0,4198.9,1.18467]